[Event "Titled Tuesday Blitz July 18 Late 2023"]
[White "Van Foreest, Machteld"]
[Black "Piesik, Piotr"]
[WhiteFideId "1051563"]
[BlackFideId "1136194"]
[WhiteElo "2515"]
[BlackElo "2607"]
[Result "1-0"]
[Round "9"]
[TimeControl "180+2"]
[Date "2023.07.18"]
[WhiteClock "0:00:09"]
[BlackClock "0:00:05"]
[Board "40"]

1. e4 {[%clk 0:03:00]}  g6 {[%clk 0:02:57]} 2. d4 {[%clk 0:03:00]}  Bg7 {[%clk 0:02:55]} 3. Nf3 {[%clk 0:02:59]}  c6 {[%clk 0:02:56]} 4. Nc3 {[%clk 0:02:59]}  d6 {[%clk 0:02:56]} 5. Be2 {[%clk 0:02:56]}  Nd7 {[%clk 0:02:56]} 6. O-O {[%clk 0:02:55]}  Ngf6 {[%clk 0:02:56]} 7. h4 {[%clk 0:02:52]}  e5 {[%clk 0:02:52]} 8. a4 {[%clk 0:02:39]}  O-O {[%clk 0:02:49]} 9. Be3 {[%clk 0:02:35]}  Re8 {[%clk 0:02:45]} 10. dxe5 {[%clk 0:02:33]}  dxe5 {[%clk 0:02:45]} 11. Qd2 {[%clk 0:02:33]}  Qe7 {[%clk 0:02:43]} 12. Rad1 {[%clk 0:02:26]}  Nc5 {[%clk 0:02:42]} 13. Bg5 {[%clk 0:02:22]}  Bg4 {[%clk 0:02:38]} 14. Qe3 {[%clk 0:01:57]}  a5 {[%clk 0:02:31]} 15. Rd2 {[%clk 0:01:49]}  Rad8 {[%clk 0:02:27]} 16. Rfd1 {[%clk 0:01:49]}  Rxd2 {[%clk 0:02:24]} 17. Rxd2 {[%clk 0:01:48]}  Bxf3 {[%clk 0:02:14]} 18. Bxf3 {[%clk 0:01:39]}  Ne6 {[%clk 0:02:10]} 19. h5 {[%clk 0:01:31]}  Nxg5 {[%clk 0:02:05]} 20. Qxg5 {[%clk 0:01:32]}  Nd7 {[%clk 0:01:51]} 21. Qe3 {[%clk 0:01:24]}  Nc5 {[%clk 0:01:43]} 22. Bg4 {[%clk 0:01:11]}  Bf8 {[%clk 0:01:33]} 23. Rd1 {[%clk 0:01:04]}  Rd8 {[%clk 0:01:32]} 24. Rxd8 {[%clk 0:00:59]}  Qxd8 {[%clk 0:01:33]} 25. hxg6 {[%clk 0:00:58]}  hxg6 {[%clk 0:01:33]} 26. Be2 {[%clk 0:00:48]}  Qd4 {[%clk 0:01:30]} 27. b3 {[%clk 0:00:22]}  Qxe3 {[%clk 0:01:21]} 28. fxe3 {[%clk 0:00:23]}  Nd7 {[%clk 0:01:13]} 29. Kf2 {[%clk 0:00:22]}  Bb4 {[%clk 0:01:13]} 30. Nd1 {[%clk 0:00:20]}  Nc5 {[%clk 0:01:08]} 31. Kf3 {[%clk 0:00:19]}  Bd2 {[%clk 0:01:06]} 32. Nb2 {[%clk 0:00:19]}  Kf8 {[%clk 0:00:57]} 33. Nc4 {[%clk 0:00:20]}  Bc3 {[%clk 0:00:57]} 34. Nd6 {[%clk 0:00:20]}  Ke7 {[%clk 0:00:57]} 35. Nc4 {[%clk 0:00:20]}  Ke6 {[%clk 0:00:53]} 36. Nb6 {[%clk 0:00:20]}  Bb4 {[%clk 0:00:48]} 37. Bc4+ {[%clk 0:00:20]}  Ke7 {[%clk 0:00:44]} 38. Nc8+ {[%clk 0:00:20]}  Kd7 {[%clk 0:00:42]} 39. Nb6+ {[%clk 0:00:11]}  Kc7 {[%clk 0:00:33]} 40. Na8+ {[%clk 0:00:11]}  Kb8 {[%clk 0:00:32]} 41. Nb6 {[%clk 0:00:11]}  Ka7 {[%clk 0:00:21]} 42. Nc8+ {[%clk 0:00:11]}  Kb8 {[%clk 0:00:20]} 43. Nd6 {[%clk 0:00:11]}  f6 {[%clk 0:00:20]} 44. Ne8 {[%clk 0:00:10]}  Nd7 {[%clk 0:00:17]} 45. Bf7 {[%clk 0:00:10]}  g5 {[%clk 0:00:15]} 46. Be6 {[%clk 0:00:11]}  Nf8 {[%clk 0:00:13]} 47. Bf7 {[%clk 0:00:07]}  Be7 {[%clk 0:00:13]} 48. Kg4 {[%clk 0:00:08]}  Kc8 {[%clk 0:00:13]} 49. Kf5 {[%clk 0:00:08]}  Kd8 {[%clk 0:00:13]} 50. Nxf6 {[%clk 0:00:09]}  Bxf6 {[%clk 0:00:12]} 51. Kxf6 {[%clk 0:00:10]}  Nd7+ {[%clk 0:00:13]} 52. Kxg5 {[%clk 0:00:09]}  Ke7 {[%clk 0:00:12]} 53. Bc4 {[%clk 0:00:08]}  Nc5 {[%clk 0:00:09]} 54. Kf5 {[%clk 0:00:09]}  Kd6 {[%clk 0:00:09]} 55. g4 {[%clk 0:00:09]}  Nd7 {[%clk 0:00:07]} 56. g5 {[%clk 0:00:10]}  Ke7 {[%clk 0:00:07]} 57. g6 {[%clk 0:00:09]}  Nf6 {[%clk 0:00:05]} 58. g7 {[%clk 0:00:09]} 1-0


[Site "https://www.chess.com"]

[Event "Titled Tuesday Blitz July 18 Late 2023"]
[White "Golubev, Mikhail"]
[Black "Bogaudinov, Rushan"]
[WhiteFideId "14100983"]
[BlackFideId "4129288"]
[WhiteElo "2581"]
[BlackElo "2392"]
[Result "0-1"]
[Round "9"]
[TimeControl "180+2"]
[Date "2023.07.18"]
[WhiteClock "0:00:00"]
[BlackClock "0:00:13"]
[Board "46"]

1. e4 {[%clk 0:03:00]}  c5 {[%clk 0:02:34]} 2. Nf3 {[%clk 0:02:59]}  Nc6 {[%clk 0:02:30]} 3. Nc3 {[%clk 0:02:59]}  e6 {[%clk 0:02:27]} 4. d4 {[%clk 0:02:58]}  cxd4 {[%clk 0:02:27]} 5. Nxd4 {[%clk 0:02:59]}  a6 {[%clk 0:02:25]} 6. Be3 {[%clk 0:02:57]}  Qc7 {[%clk 0:02:24]} 7. Bd3 {[%clk 0:02:54]}  b5 {[%clk 0:02:22]} 8. Nxc6 {[%clk 0:02:49]}  dxc6 {[%clk 0:02:19]} 9. O-O {[%clk 0:02:46]}  c5 {[%clk 0:02:11]} 10. a4 {[%clk 0:02:41]}  b4 {[%clk 0:02:09]} 11. Nb1 {[%clk 0:02:39]}  Nf6 {[%clk 0:02:06]} 12. Nd2 {[%clk 0:02:38]}  Bb7 {[%clk 0:02:02]} 13. f3 {[%clk 0:02:31]}  Be7 {[%clk 0:01:45]} 14. Qe2 {[%clk 0:02:30]}  h5 {[%clk 0:01:44]} 15. Nc4 {[%clk 0:02:18]}  h4 {[%clk 0:01:40]} 16. e5 {[%clk 0:02:08]}  Nd7 {[%clk 0:01:36]} 17. Bf2 {[%clk 0:01:52]}  h3 {[%clk 0:01:33]} 18. g4 {[%clk 0:01:39]}  Nb6 {[%clk 0:01:08]} 19. Nxb6 {[%clk 0:01:29]}  Qxb6 {[%clk 0:01:08]} 20. Be4 {[%clk 0:01:30]}  O-O {[%clk 0:00:56]} 21. Rad1 {[%clk 0:01:27]}  Rfd8 {[%clk 0:00:50]} 22. b3 {[%clk 0:01:18]}  Bc6 {[%clk 0:00:38]} 23. Bxc6 {[%clk 0:00:35]}  Qxc6 {[%clk 0:00:38]} 24. Qe4 {[%clk 0:00:35]}  Qxe4 {[%clk 0:00:34]} 25. fxe4 {[%clk 0:00:35]}  c4 {[%clk 0:00:34]} 26. bxc4 {[%clk 0:00:33]}  Rdc8 {[%clk 0:00:31]} 27. Rd7 {[%clk 0:00:32]}  Bf8 {[%clk 0:00:31]} 28. c5 {[%clk 0:00:28]}  Rd8 {[%clk 0:00:14]} 29. Rfd1 {[%clk 0:00:19]}  Rxd7 {[%clk 0:00:13]} 30. Rxd7 {[%clk 0:00:18]}  Rc8 {[%clk 0:00:13]} 31. c6 {[%clk 0:00:05]}  Rxc6 {[%clk 0:00:13]} 32. Rd8 {[%clk 0:00:05]}  f6 {[%clk 0:00:12]} 33. exf6 {[%clk 0:00:05]}  gxf6 {[%clk 0:00:12]} 34. Bh4 {[%clk 0:00:04]}  Kf7 {[%clk 0:00:12]} 35. Bxf6 {[%clk 0:00:04]}  Bc5+ {[%clk 0:00:12]} 36. Bd4 {[%clk 0:00:04]}  e5 {[%clk 0:00:11]} 37. Bxc5 {[%clk 0:00:04]}  Rxc5 {[%clk 0:00:12]} 38. Rd6 {[%clk 0:00:03]}  Rxc2 {[%clk 0:00:12]} 39. Rxa6 {[%clk 0:00:02]}  b3 {[%clk 0:00:12]} 40. Rb6 {[%clk 0:00:03]}  b2 {[%clk 0:00:12]} 41. g5 {[%clk 0:00:03]}  Rc1+ {[%clk 0:00:12]} 42. Kf2 {[%clk 0:00:04]}  b1=Q {[%clk 0:00:12]} 43. Rxb1 {[%clk 0:00:03]}  Rxb1 {[%clk 0:00:13]} 44. Kg3 {[%clk 0:00:00]}  Kg6 {[%clk 0:00:13]} 0-1


[Site "https://www.chess.com"]

[Event "Titled Tuesday Blitz July 18 Late 2023"]
[White "Altman, Joshua"]
[Black "disciplinedbrat"]
[WhiteFideId "426210"]
[WhiteElo "2563"]
[BlackElo "2274"]
[Result "1-0"]
[Round "9"]
[TimeControl "180+2"]
[Date "2023.07.18"]
[WhiteClock "0:00:27"]
[BlackClock "0:00:39"]
[Board "48"]

1. Nf3 {[%clk 0:03:00]}  g6 {[%clk 0:02:58]} 2. d4 {[%clk 0:02:58]}  Bg7 {[%clk 0:02:59]} 3. c4 {[%clk 0:02:58]}  d6 {[%clk 0:02:55]} 4. Nc3 {[%clk 0:02:58]}  a6 {[%clk 0:02:55]} 5. Bg5 {[%clk 0:02:57]}  Nd7 {[%clk 0:02:56]} 6. e3 {[%clk 0:02:58]}  Ngf6 {[%clk 0:02:56]} 7. Be2 {[%clk 0:02:57]}  O-O {[%clk 0:02:56]} 8. Qc2 {[%clk 0:02:57]}  Rb8 {[%clk 0:02:56]} 9. a4 {[%clk 0:02:56]}  c6 {[%clk 0:02:57]} 10. O-O {[%clk 0:02:56]}  e5 {[%clk 0:02:51]} 11. Rfd1 {[%clk 0:02:54]}  h6 {[%clk 0:02:50]} 12. dxe5 {[%clk 0:02:47]}  hxg5 {[%clk 0:02:46]} 13. exf6 {[%clk 0:02:46]}  Qxf6 {[%clk 0:02:46]} 14. Ne4 {[%clk 0:02:39]}  Qxb2 {[%clk 0:02:43]} 15. Qxb2 {[%clk 0:02:39]}  Bxb2 {[%clk 0:02:43]} 16. Rab1 {[%clk 0:02:39]}  Bg7 {[%clk 0:02:28]} 17. Nxd6 {[%clk 0:02:37]}  g4 {[%clk 0:02:25]} 18. Ng5 {[%clk 0:02:15]}  Ne5 {[%clk 0:02:20]} 19. c5 {[%clk 0:01:51]}  Bh6 {[%clk 0:02:06]} 20. Nge4 {[%clk 0:01:46]}  f5 {[%clk 0:02:06]} 21. Nxc8 {[%clk 0:01:36]}  Rfxc8 {[%clk 0:02:04]} 22. Nd6 {[%clk 0:01:33]}  Rc7 {[%clk 0:02:04]} 23. Bxa6 {[%clk 0:01:30]}  Ra8 {[%clk 0:01:48]} 24. Bxb7 {[%clk 0:01:03]}  Rxa4 {[%clk 0:01:44]} 25. Ra1 {[%clk 0:00:58]}  Rxa1 {[%clk 0:01:39]} 26. Rxa1 {[%clk 0:00:59]}  Bf8 {[%clk 0:01:38]} 27. Ba6 {[%clk 0:00:38]}  Ra7 {[%clk 0:01:31]} 28. Bc4+ {[%clk 0:00:37]}  Nxc4 {[%clk 0:01:27]} 29. Rxa7 {[%clk 0:00:37]}  Bxd6 {[%clk 0:00:55]} 30. cxd6 {[%clk 0:00:38]}  Nxd6 {[%clk 0:00:56]} 31. Ra6 {[%clk 0:00:37]}  Ne4 {[%clk 0:00:55]} 32. Rxc6 {[%clk 0:00:37]}  Kg7 {[%clk 0:00:56]} 33. Kf1 {[%clk 0:00:29]}  Kh6 {[%clk 0:00:53]} 34. Ke2 {[%clk 0:00:29]}  Kg5 {[%clk 0:00:53]} 35. f3 {[%clk 0:00:26]}  gxf3+ {[%clk 0:00:39]} 36. gxf3 {[%clk 0:00:27]} 1-0


[Site "https://www.chess.com"]

[Event "Titled Tuesday Blitz July 18 Late 2023"]
[White "Cordova, Emilio"]
[Black "Besedes, Danilo"]
[WhiteFideId "3801497"]
[BlackFideId "946796"]
[WhiteElo "2799"]
[BlackElo "2550"]
[Result "0-1"]
[Round "9"]
[TimeControl "180+2"]
[Date "2023.07.18"]
[WhiteClock "0:01:09"]
[BlackClock "0:00:09"]
[Board "49"]

1. e4 {[%clk 0:02:36]}  g6 {[%clk 0:03:00]} 2. d4 {[%clk 0:02:35]}  Bg7 {[%clk 0:03:01]} 3. h4 {[%clk 0:02:36]}  h6 {[%clk 0:03:01]} 4. h5 {[%clk 0:02:36]}  g5 {[%clk 0:03:01]} 5. f4 {[%clk 0:02:36]}  gxf4 {[%clk 0:03:01]} 6. Bxf4 {[%clk 0:02:37]}  d6 {[%clk 0:03:00]} 7. Nc3 {[%clk 0:02:37]}  Nc6 {[%clk 0:02:58]} 8. Nf3 {[%clk 0:02:32]}  Bg4 {[%clk 0:02:58]} 9. d5 {[%clk 0:02:32]}  Ne5 {[%clk 0:02:54]} 10. Bb5+ {[%clk 0:02:32]}  Kf8 {[%clk 0:02:54]} 11. Be2 {[%clk 0:02:24]}  Bxf3 {[%clk 0:02:46]} 12. gxf3 {[%clk 0:02:25]}  c6 {[%clk 0:02:43]} 13. Qd2 {[%clk 0:02:24]}  cxd5 {[%clk 0:02:40]} 14. Nxd5 {[%clk 0:02:24]}  Nf6 {[%clk 0:02:37]} 15. Nxf6 {[%clk 0:02:22]}  Bxf6 {[%clk 0:02:25]} 16. Bxh6+ {[%clk 0:02:22]}  Ke8 {[%clk 0:02:26]} 17. Be3 {[%clk 0:02:15]}  a6 {[%clk 0:02:16]} 18. O-O-O {[%clk 0:02:14]}  Rc8 {[%clk 0:02:15]} 19. Kb1 {[%clk 0:02:15]}  Nc4 {[%clk 0:02:12]} 20. Bxc4 {[%clk 0:02:15]}  Rxc4 {[%clk 0:02:13]} 21. c3 {[%clk 0:02:10]}  b5 {[%clk 0:02:12]} 22. h6 {[%clk 0:02:07]}  b4 {[%clk 0:02:12]} 23. Qd5 {[%clk 0:02:06]}  Qc8 {[%clk 0:02:10]} 24. cxb4 {[%clk 0:01:57]}  Rxb4 {[%clk 0:02:05]} 25. Rd2 {[%clk 0:01:57]}  Qc3 {[%clk 0:01:50]} 26. Qa8+ {[%clk 0:01:57]}  Kd7 {[%clk 0:01:49]} 27. Qa7+ {[%clk 0:01:56]}  Ke6 {[%clk 0:01:45]} 28. Rhh2 {[%clk 0:01:44]}  Rc8 {[%clk 0:01:22]} 29. a3 {[%clk 0:01:26]}  Qc1+ {[%clk 0:00:27]} 30. Ka2 {[%clk 0:01:26]}  Qc4+ {[%clk 0:00:25]} 31. Kb1 {[%clk 0:01:19]}  Qf1+ {[%clk 0:00:20]} 32. Ka2 {[%clk 0:01:19]}  Rc1 {[%clk 0:00:13]} 33. Rd1 {[%clk 0:01:09]}  Rxd1 {[%clk 0:00:09]} 0-1


[Site "https://www.chess.com"]

[Event "Titled Tuesday Blitz July 18 Late 2023"]
[White "Leenhouts, Koen"]
[Black "Zelbel, Patrick"]
[WhiteFideId "1008439"]
[BlackFideId "24624322"]
[WhiteElo "2525"]
[BlackElo "2761"]
[Result "0-1"]
[Round "9"]
[TimeControl "180+2"]
[Date "2023.07.18"]
[WhiteClock "0:00:01"]
[BlackClock "0:00:12"]
[Board "50"]

1. d4 {[%clk 0:03:00]}  Nf6 {[%clk 0:02:58]} 2. c4 {[%clk 0:03:00]}  c5 {[%clk 0:02:57]} 3. d5 {[%clk 0:02:59]}  b5 {[%clk 0:02:57]} 4. cxb5 {[%clk 0:02:58]}  a6 {[%clk 0:02:57]} 5. bxa6 {[%clk 0:02:59]}  e6 {[%clk 0:02:55]} 6. Nc3 {[%clk 0:02:56]}  exd5 {[%clk 0:02:54]} 7. Nxd5 {[%clk 0:02:55]}  Be7 {[%clk 0:02:53]} 8. Nf3 {[%clk 0:02:52]}  O-O {[%clk 0:02:53]} 9. e3 {[%clk 0:02:22]}  Nxa6 {[%clk 0:02:50]} 10. Bc4 {[%clk 0:02:19]}  Nxd5 {[%clk 0:02:45]} 11. Bxd5 {[%clk 0:02:17]}  Rb8 {[%clk 0:02:45]} 12. O-O {[%clk 0:02:16]}  Nb4 {[%clk 0:02:40]} 13. e4 {[%clk 0:01:57]}  Nxd5 {[%clk 0:02:26]} 14. exd5 {[%clk 0:01:58]}  Bf6 {[%clk 0:02:17]} 15. d6 {[%clk 0:01:52]}  Rb6 {[%clk 0:02:01]} 16. Be3 {[%clk 0:01:47]}  Bb7 {[%clk 0:01:56]} 17. Bxc5 {[%clk 0:01:39]}  Rxb2 {[%clk 0:01:55]} 18. Rb1 {[%clk 0:01:35]}  Rxb1 {[%clk 0:01:51]} 19. Qxb1 {[%clk 0:01:34]}  Qa8 {[%clk 0:01:51]} 20. Qf5 {[%clk 0:01:08]}  Bc6 {[%clk 0:01:44]} 21. Ng5 {[%clk 0:01:00]}  Bxg5 {[%clk 0:01:39]} 22. Qxg5 {[%clk 0:01:00]}  Qxa2 {[%clk 0:01:38]} 23. Re1 {[%clk 0:00:53]}  h6 {[%clk 0:01:31]} 24. Qe3 {[%clk 0:00:46]}  Ra8 {[%clk 0:01:22]} 25. h4 {[%clk 0:00:37]}  Ra4 {[%clk 0:01:12]} 26. Qg3 {[%clk 0:00:18]}  Qd5 {[%clk 0:01:07]} 27. Be3 {[%clk 0:00:13]}  Rxh4 {[%clk 0:01:07]} 28. Rb1 {[%clk 0:00:08]}  Kh7 {[%clk 0:00:48]} 29. f3 {[%clk 0:00:08]}  Ra4 {[%clk 0:00:41]} 30. Re1 {[%clk 0:00:09]}  Qd3 {[%clk 0:00:37]} 31. Bf2 {[%clk 0:00:08]}  Ra5 {[%clk 0:00:32]} 32. Qf4 {[%clk 0:00:06]}  Rh5 {[%clk 0:00:27]} 33. Qxf7 {[%clk 0:00:04]}  Rf5 {[%clk 0:00:26]} 34. Qe7 {[%clk 0:00:03]}  Rg5 {[%clk 0:00:23]} 35. Qe3 {[%clk 0:00:02]}  Qg6 {[%clk 0:00:19]} 36. g3 {[%clk 0:00:02]}  Rf5 {[%clk 0:00:20]} 37. f4 {[%clk 0:00:02]}  Qh5 {[%clk 0:00:20]} 38. Kf1 {[%clk 0:00:01]}  Bb5+ {[%clk 0:00:19]} 39. Kg1 {[%clk 0:00:02]}  Bc6 {[%clk 0:00:20]} 40. Kf1 {[%clk 0:00:02]}  Ra5 {[%clk 0:00:18]} 41. Qd3+ {[%clk 0:00:02]}  Kh8 {[%clk 0:00:14]} 42. Qc3 {[%clk 0:00:02]}  Ra2 {[%clk 0:00:12]} 43. Bg1 {[%clk 0:00:01]}  Qh3# {[%clk 0:00:12]} 0-1


[Site "https://www.chess.com"]

[Event "Titled Tuesday Blitz July 18 Late 2023"]
[White "Morefield, Jason"]
[Black "Rottenwohrer Suarez, Juan"]
[WhiteFideId "30920825"]
[BlackFideId "32068182"]
[WhiteElo "2740"]
[BlackElo "2523"]
[Result "1/2-1/2"]
[Round "9"]
[TimeControl "180+2"]
[Date "2023.07.18"]
[WhiteClock "0:00:05"]
[BlackClock "0:00:03"]
[Board "51"]

1. e4 {[%clk 0:03:00]}  e6 {[%clk 0:03:00]} 2. d4 {[%clk 0:03:00]}  d5 {[%clk 0:03:00]} 3. e5 {[%clk 0:03:01]}  c5 {[%clk 0:02:58]} 4. c3 {[%clk 0:03:01]}  Ne7 {[%clk 0:02:54]} 5. Nf3 {[%clk 0:03:01]}  Nbc6 {[%clk 0:02:49]} 6. Bd3 {[%clk 0:02:56]}  Bd7 {[%clk 0:02:50]} 7. O-O {[%clk 0:02:55]}  cxd4 {[%clk 0:02:48]} 8. cxd4 {[%clk 0:02:55]}  Qb6 {[%clk 0:02:48]} 9. Nc3 {[%clk 0:02:55]}  Nxd4 {[%clk 0:02:45]} 10. Nxd4 {[%clk 0:02:55]}  Qxd4 {[%clk 0:02:46]} 11. Re1 {[%clk 0:02:55]}  Qb6 {[%clk 0:02:36]} 12. Bg5 {[%clk 0:02:26]}  Rc8 {[%clk 0:02:30]} 13. Rc1 {[%clk 0:02:22]}  Ng6 {[%clk 0:02:27]} 14. Qg4 {[%clk 0:02:08]}  Bc5 {[%clk 0:02:24]} 15. Qg3 {[%clk 0:02:07]}  O-O {[%clk 0:02:21]} 16. h4 {[%clk 0:02:05]}  h6 {[%clk 0:02:14]} 17. Bxh6 {[%clk 0:01:44]}  gxh6 {[%clk 0:02:11]} 18. h5 {[%clk 0:01:43]}  Bxf2+ {[%clk 0:02:08]} 19. Qxf2 {[%clk 0:01:42]}  Qxf2+ {[%clk 0:02:09]} 20. Kxf2 {[%clk 0:01:43]}  Nf4 {[%clk 0:02:05]} 21. Be2 {[%clk 0:01:41]}  f6 {[%clk 0:02:03]} 22. exf6 {[%clk 0:01:35]}  Rxf6 {[%clk 0:02:04]} 23. Kg3 {[%clk 0:01:35]}  Kh8 {[%clk 0:01:59]} 24. Bf3 {[%clk 0:01:34]}  Rg8+ {[%clk 0:01:59]} 25. Kh2 {[%clk 0:01:33]}  Nd3 {[%clk 0:01:55]} 26. Rcd1 {[%clk 0:01:31]}  Nxe1 {[%clk 0:01:54]} 27. Rxe1 {[%clk 0:01:32]}  d4 {[%clk 0:01:50]} 28. Ne4 {[%clk 0:01:31]}  Rf4 {[%clk 0:01:47]} 29. Nc5 {[%clk 0:01:28]}  Bc8 {[%clk 0:01:47]} 30. Nxe6 {[%clk 0:01:20]}  Re8 {[%clk 0:01:41]} 31. Nxf4 {[%clk 0:01:20]}  Rxe1 {[%clk 0:01:41]} 32. Kg3 {[%clk 0:01:17]}  Be6 {[%clk 0:01:37]} 33. a3 {[%clk 0:01:15]}  Bf7 {[%clk 0:01:30]} 34. Bxb7 {[%clk 0:01:13]}  Rb1 {[%clk 0:01:30]} 35. Be4 {[%clk 0:00:58]}  Rxb2 {[%clk 0:01:29]} 36. Kg4 {[%clk 0:00:58]}  Rb3 {[%clk 0:01:29]} 37. a4 {[%clk 0:00:55]}  Re3 {[%clk 0:01:28]} 38. Kf5 {[%clk 0:00:45]}  Be8 {[%clk 0:01:19]} 39. Ke5 {[%clk 0:00:38]}  Bc6 {[%clk 0:01:16]} 40. Nd5 {[%clk 0:00:33]}  Bxd5 {[%clk 0:01:17]} 41. Kxd5 {[%clk 0:00:34]}  a5 {[%clk 0:00:59]} 42. Kxd4 {[%clk 0:00:34]}  Re2 {[%clk 0:00:58]} 43. Bf3 {[%clk 0:00:27]}  Ra2 {[%clk 0:00:57]} 44. Bc6 {[%clk 0:00:27]}  Ra3 {[%clk 0:00:55]} 45. Kc5 {[%clk 0:00:25]}  Re3 {[%clk 0:00:52]} 46. Kb6 {[%clk 0:00:24]}  Re6 {[%clk 0:00:50]} 47. g4 {[%clk 0:00:17]}  Kg7 {[%clk 0:00:49]} 48. Kb5 {[%clk 0:00:15]}  Kf6 {[%clk 0:00:48]} 49. Bd7 {[%clk 0:00:10]}  Rd6 {[%clk 0:00:47]} 50. Bf5 {[%clk 0:00:10]}  Rd5+ {[%clk 0:00:45]} 51. Kc6 {[%clk 0:00:10]}  Ke5 {[%clk 0:00:44]} 52. Kb6 {[%clk 0:00:10]}  Kd4 {[%clk 0:00:42]} 53. Bc8 {[%clk 0:00:08]}  Kc3 {[%clk 0:00:40]} 54. Be6 {[%clk 0:00:06]}  Rg5 {[%clk 0:00:40]} 55. Bf5 {[%clk 0:00:04]}  Kb4 {[%clk 0:00:37]} 56. Bd7 {[%clk 0:00:04]}  Rd5 {[%clk 0:00:35]} 57. Kc7 {[%clk 0:00:03]}  Rd4 {[%clk 0:00:33]} 58. Kd8 {[%clk 0:00:02]}  Re4 {[%clk 0:00:31]} 59. Bc6 {[%clk 0:00:01]}  Rxg4 {[%clk 0:00:30]} 60. Ke7 {[%clk 0:00:02]}  Rg5 {[%clk 0:00:31]} 61. Be8 {[%clk 0:00:02]}  Rg3 {[%clk 0:00:29]} 62. Kf6 {[%clk 0:00:02]}  Rg5 {[%clk 0:00:20]} 63. Bg6 {[%clk 0:00:02]}  Kxa4 {[%clk 0:00:19]} 64. Kg7 {[%clk 0:00:02]}  Rg3 {[%clk 0:00:13]} 65. Kxh6 {[%clk 0:00:03]}  Kb4 {[%clk 0:00:14]} 66. Kg7 {[%clk 0:00:03]}  a4 {[%clk 0:00:13]} 67. h6 {[%clk 0:00:03]}  Rh3 {[%clk 0:00:08]} 68. h7 {[%clk 0:00:02]}  a3 {[%clk 0:00:08]} 69. Bf7 {[%clk 0:00:03]}  Rg3+ {[%clk 0:00:08]} 70. Kf8 {[%clk 0:00:03]}  Rh3 {[%clk 0:00:06]} 71. Kg8 {[%clk 0:00:03]}  Kc3 {[%clk 0:00:01]} 72. h8=Q+ {[%clk 0:00:03]}  Rxh8+ {[%clk 0:00:02]} 73. Kxh8 {[%clk 0:00:04]}  Kb2 {[%clk 0:00:03]} 74. Kg7 {[%clk 0:00:04]}  a2 {[%clk 0:00:03]} 75. Bxa2 {[%clk 0:00:05]} 1/2-1/2


[Site "https://www.chess.com"]

[Event "Titled Tuesday Blitz July 18 Late 2023"]
[White "Kleiman, Jake"]
[Black "Papp, Levente"]
[WhiteFideId "2020041"]
[BlackFideId "751243"]
[WhiteElo "2501"]
[BlackElo "2707"]
[Result "1-0"]
[Round "9"]
[TimeControl "180+2"]
[Date "2023.07.18"]
[WhiteClock "0:00:15"]
[BlackClock "0:00:00"]
[Board "53"]

1. e4 {[%clk 0:03:00]}  e6 {[%clk 0:02:59]} 2. d3 {[%clk 0:02:57]}  d5 {[%clk 0:02:59]} 3. Qe2 {[%clk 0:02:56]}  dxe4 {[%clk 0:02:59]} 4. dxe4 {[%clk 0:02:56]}  e5 {[%clk 0:02:59]} 5. Nf3 {[%clk 0:02:57]}  Nc6 {[%clk 0:02:59]} 6. c3 {[%clk 0:02:57]}  Nf6 {[%clk 0:02:59]} 7. Qc2 {[%clk 0:02:57]}  a5 {[%clk 0:02:55]} 8. Bc4 {[%clk 0:02:56]}  Bc5 {[%clk 0:02:55]} 9. O-O {[%clk 0:02:56]}  O-O {[%clk 0:02:54]} 10. h3 {[%clk 0:02:55]}  Qe7 {[%clk 0:02:51]} 11. a4 {[%clk 0:02:52]}  Be6 {[%clk 0:02:44]} 12. Qb3 {[%clk 0:02:45]}  Nxe4 {[%clk 0:02:31]} 13. Bxe6 {[%clk 0:02:39]}  Qxe6 {[%clk 0:02:26]} 14. Qxe6 {[%clk 0:02:24]}  fxe6 {[%clk 0:02:26]} 15. Nbd2 {[%clk 0:02:19]}  Nxd2 {[%clk 0:02:07]} 16. Nxd2 {[%clk 0:02:08]}  Rad8 {[%clk 0:02:04]} 17. Ne4 {[%clk 0:02:07]}  Bb6 {[%clk 0:02:03]} 18. Bg5 {[%clk 0:01:51]}  Rd5 {[%clk 0:01:59]} 19. Rae1 {[%clk 0:01:48]}  h6 {[%clk 0:01:38]} 20. Be3 {[%clk 0:01:48]}  Bxe3 {[%clk 0:01:31]} 21. Rxe3 {[%clk 0:01:49]}  Rfd8 {[%clk 0:01:23]} 22. Ree1 {[%clk 0:01:37]}  b6 {[%clk 0:01:13]} 23. g3 {[%clk 0:01:32]}  Ne7 {[%clk 0:01:12]} 24. Kg2 {[%clk 0:01:32]}  Nf5 {[%clk 0:00:59]} 25. Re2 {[%clk 0:01:28]}  Kf7 {[%clk 0:00:52]} 26. Rfe1 {[%clk 0:01:26]}  Nd6 {[%clk 0:00:47]} 27. Nd2 {[%clk 0:01:08]}  Kf6 {[%clk 0:00:47]} 28. Nf1 {[%clk 0:01:02]}  Nf5 {[%clk 0:00:41]} 29. Nh2 {[%clk 0:00:57]}  Rd1 {[%clk 0:00:29]} 30. Ng4+ {[%clk 0:00:56]}  Ke7 {[%clk 0:00:30]} 31. Rxd1 {[%clk 0:00:55]}  Rxd1 {[%clk 0:00:30]} 32. Nxe5 {[%clk 0:00:56]}  Kd6 {[%clk 0:00:22]} 33. Nc4+ {[%clk 0:00:52]}  Ke7 {[%clk 0:00:20]} 34. h4 {[%clk 0:00:46]}  Ra1 {[%clk 0:00:19]} 35. Na3 {[%clk 0:00:41]}  Nd6 {[%clk 0:00:18]} 36. h5 {[%clk 0:00:36]}  Kf6 {[%clk 0:00:18]} 37. g4 {[%clk 0:00:33]}  e5 {[%clk 0:00:18]} 38. f3 {[%clk 0:00:31]}  Nf7 {[%clk 0:00:15]} 39. Nb5 {[%clk 0:00:30]}  Rxa4 {[%clk 0:00:14]} 40. Nxc7 {[%clk 0:00:30]}  Ng5 {[%clk 0:00:12]} 41. Ne8+ {[%clk 0:00:27]}  Kf7 {[%clk 0:00:10]} 42. Rxe5 {[%clk 0:00:25]}  Ne6 {[%clk 0:00:10]} 43. Nd6+ {[%clk 0:00:24]}  Ke7 {[%clk 0:00:09]} 44. Nf5+ {[%clk 0:00:23]}  Kf6 {[%clk 0:00:09]} 45. Re3 {[%clk 0:00:21]}  Ra2 {[%clk 0:00:09]} 46. Kg3 {[%clk 0:00:20]}  Rxb2 {[%clk 0:00:10]} 47. Nd6 {[%clk 0:00:18]}  Ke7 {[%clk 0:00:09]} 48. Nc4 {[%clk 0:00:18]}  Rb5 {[%clk 0:00:07]} 49. f4 {[%clk 0:00:16]}  Kf6 {[%clk 0:00:07]} 50. Ne5 {[%clk 0:00:15]}  Rd5 {[%clk 0:00:06]} 51. Nf3 {[%clk 0:00:15]}  a4 {[%clk 0:00:06]} 52. c4 {[%clk 0:00:15]}  Rc5 {[%clk 0:00:06]} 53. Nd2 {[%clk 0:00:14]}  b5 {[%clk 0:00:04]} 54. Ne4+ {[%clk 0:00:14]}  Kf7 {[%clk 0:00:03]} 55. Nxc5 {[%clk 0:00:15]}  Nxc5 {[%clk 0:00:04]} 56. cxb5 {[%clk 0:00:15]}  Ne6 {[%clk 0:00:00]} 57. Ra3 {[%clk 0:00:15]} 1-0


[Site "https://www.chess.com"]